Cogmind - Beta 13 *** ADVENTURER MODE // 2024.04.09 @ 15:15:15 Player: Asterix Result: Destroyed by H-66 Slayer with Gauss Rifle Performance ------------- Evolutions (5) 2500 Regions Visited (11) 2200 Robots Destroyed (130) 650 Value Destroyed (4814) 4814 Prototype IDs (1) 20 Alien Tech Used (0) 0 Bonus (1786) 1786 TOTAL SCORE: 11970 Bonus ------- High Alert Combat Kills 71 Follower Combat Kills 370 MAIN.C Attacked Warlord 500 Warlord Defense Kills 1068 Friendly Fire -223 Cogmind --------- Core Integrity 0/1000 Matter 220/300 Energy 97/100 System Corruption 1% Temperature Cool (0) Movement Core (300) Ox5 Location -5/Warlord Parts ------- > --- POWER (3) -------- (None) > --- PROPULSION (4) --- (None) > --- UTILITY (5) ------ Medium Storage Unit 0b10 Decoder Chip [Skirmisher] > --- WEAPON (5) ------- Helical Railgun > --- INVENTORY (10) --- Reinforced Deuterium Engine Angular Momentum Engine Light Angular Momentum Engine Light Angular Momentum Engine Neutrino Core Neutrino Core Reinforced Fission Core Antimatter Reactor Hardened Medium Armor Plating Peak State ------------ > --- POWER ------------ Reinforced Deuterium Engine Light Angular Momentum Engine Fission Core > --- PROPULSION ------- Improved Medium Treads Improved Medium Treads Improved Medium Treads Improved Medium Treads > --- UTILITY ---------- Medium Storage Unit Advanced Targeting Computer Improved Transmission Jammer Layered Medium Armor Plating Hacking Suite > --- WEAPON ----------- Heavy Assault Rifle Gauss Rifle Heavy Machine Gun Heavy Machine Gun Magnetic Acceleration Cannon > --- INVENTORY -------- Reinforced Deuterium Engine Reinforced Deuterium Engine Angular Momentum Engine Neutrino Core Light Treads Light Treads Improved Treads Improved Medium Armor Plating Heavy Assault Rifle Autogun [Rating: 76] Favorites ----------- Power Reinforced Deuterium Engine Engine Reinforced Deuterium Engine Power Core Fission Core Propulsion Light Treads Treads Light Treads Wheel Compact Wheel Utility Medium Storage Unit Device Makeshift ECM Suite Storage Medium Storage Unit Processor Advanced Targeting Computer Hackware Hacking Suite Protection Improved Medium Armor Plating Weapon Heavy Assault Rifle Energy Gun Makeshift Laser Ballistic Gun Heavy Assault Rifle Ballistic Cannon Magnetic Acceleration Cannon Launcher Missile Launcher Build | -11 -10 -9 -8 -7 -7 -6 -6 -5 -5 -5 -5 ------- Run | Yrd Mat Mat Mat Fac Sto Fac Ext Fac Upp Upp War Slots Evolved 10 | . . 2 2 2 . 2 . 2 . . . Power 2 | . . . 1 . . 1 . . . . . Propulsion 2 | . . 1 . 1 . . . . . . . Utility 3 | . . 1 . . . 1 . 1 . . . Weapon 3 | . . . 1 1 . . . 1 . . . Parts Attached 144 | 6 3 17 17 7 2 2 46 12 13 . 19 Power 26 | 1 . 1 3 1 . 1 10 4 3 . 2 Engine 19 | 1 . 1 3 1 . 1 6 2 3 . 1 Core 7 | . . . . . . . 4 2 . . 1 Reactor . | . . . . . . . . . . . . Propulsion 40 | 2 . 8 5 2 1 . 15 . 4 . 3 Treads 37 | . . 7 5 2 1 . 15 . 4 . 3 Leg . | . . . . . . . . . . . . Wheel 3 | 2 . 1 . . . . . . . . . Hover . | . . . . . . . . . . . . Flight . | . . . . . . . . . . . . Utility 29 | 1 2 4 2 1 1 1 5 3 3 . 6 Device 8 | . 1 1 . . . . 2 1 . . 3 Storage 7 | 1 1 1 1 . . . 1 . 2 . . Processor 3 | . . . 1 1 . . . . . . 1 Hackware 1 | . . . . . . 1 . . . . . Protection 10 | . . 2 . . 1 . 2 2 1 . 2 Artifact . | . . . . . . . . . . . . Weapon 49 | 2 1 4 7 3 . . 16 5 3 . 8 Energy Gun 9 | 1 1 2 . . . . 2 . 1 . 2 Energy Cannon . | . . . . . . . . . . . . Ballistic Gun 37 | 1 . 2 7 2 . . 12 5 2 . 6 Ballistic Cannon 2 | . . . . 1 . . 1 . . . . Launcher 1 | . . . . . . . 1 . . . . Special Weapon . | . . . . . . . . . . . . Impact Weapon . | . . . . . . . . . . . . Slashing Weapon . | . . . . . . . . . . . . Piercing Weapon . | . . . . . . . . . . . . Special Melee Weapon . | . . . . . . . . . . . . Unidentified Prototypes 1 | . . . . . . . . . . . 1 Corrupted Parts 1 | . . 1 . . . . . . . . . System Corruption 2 | . . 2 . . . . . . . . . Parts Lost 38 | . . 6 . . 1 . 10 . 4 . 17 Power 6 | . . . . . . . 2 . . . 4 Propulsion 13 | . . 3 . . . . 4 . 1 . 5 Utility 7 | . . 1 . . 1 . 1 . 2 . 2 Weapon 12 | . . 2 . . . . 3 . 1 . 6 Highest Loss Streak 10 | . . 4 . . 1 . 7 . 3 . 10 To Critical Strikes . | . . . . . . . . . . . . Average Slot Usage (%) 94 | . 95 89 100 98 99 93 96 99 93 76 91 Engine 14 | . 14 11 18 15 15 16 16 10 14 17 13 Core 1 | . . . . . . . 2 5 2 . 2 Treads 24 | . . 23 27 30 29 26 25 23 22 23 22 Device 6 | . 4 10 9 7 5 . 4 2 3 . 9 Storage 6 | . 19 12 9 7 7 6 6 5 5 5 5 Processor 4 | . . . 7 7 7 6 6 5 3 . 3 Hackware 2 | . . . . . . 3 6 5 4 . . Protection 3 | . . 9 1 . 1 6 1 7 5 5 4 Energy Gun 2 | . 14 3 . . . . . . 2 5 7 Ballistic Gun 22 | . 14 17 27 28 30 26 22 23 22 17 18 Naked Turns . | . . . . . . . . . . . . Heaviest Build 264 | 13 15 23 40 43 48 58 79 90 264 74 99 Greatest Support 120 | 32 32 63 63 83 83 80 120 120 120 103 113 Greatest Overweight (x) 6 | . . 6 . . . . . . 3 . 1 Average Overweight (x) . | . . . . . . . . . . . . Largest Inventory Capacity 35 | 8 8 8 10 10 10 10 10 10 35 10 10 Average Capacity 9 | 6 6 7 9 10 10 10 10 10 12 10 10 Most Carried 11 | 3 5 8 10 10 10 9 10 10 11 10 10 Average Carried 8 | . 1 5 9 9 9 7 7 9 9 9 8 Final Capacity 10 | 8 5 8 10 10 10 10 10 10 10 10 10 Final Carried 10 | . 5 7 10 9 9 7 10 10 9 10 9 Class Distribution -------------------- 48% | Scavenger-Gunner 28% | Scavenger-Tank 10% | Scavenger-Mutant 6% | Gunner 5% | Mutant Dominant Class ---------------- Mutant | -10/Materials Scavenger-Mutant | -9/Materials Scavenger-Gunner | -8/Materials Scavenger-Gunner | -7/Factory Gunner | -7/Storage Scavenger-Gunner | -6/Factory Scavenger-Gunner | -6/Extension Scavenger-Gunner | -5/Factory Scavenger-Gunner | -5/Upper Caves Scavenger-Tank | -5/Upper Caves Scavenger-Tank | -5/Warlord Resources | -11 -10 -9 -8 -7 -7 -6 -6 -5 -5 -5 -5 ----------- Run | Yrd Mat Mat Mat Fac Sto Fac Ext Fac Upp Upp War Matter Collected 4687 | 262 129 480 547 231 392 . 1231 366 606 133 310 Remotely . | . . . . . . . . . . . . Salvage Created 6294 | 71 297 977 1012 274 457 . 1341 472 573 232 588 Parts 307 | 2 18 54 66 10 20 . 66 24 25 3 19 Haulers Intercepted 3 | . . . 1 . 1 . . 1 . . . Recyclers Shooed 4 | . 3 1 . . . . . . . . . Parts Field Recycled . | . . . . . . . . . . . . Retrieved Matter . | . . . . . . . . . . . . Parts Self-Destructed 27 | . . . . . . . . . 24 3 . Prevented 2 | . . . . . . . . . 2 . . Kills | -11 -10 -9 -8 -7 -7 -6 -6 -5 -5 -5 -5 ------- Run | Yrd Mat Mat Mat Fac Sto Fac Ext Fac Upp Upp War Combat Hostiles Destroyed 100 | . 5 23 16 6 5 . 14 9 12 . 10 Melee 1 | . . . . . . . . . . . 1 Guns 96 | . 5 23 16 6 5 . 13 7 12 . 9 Cannons 2 | . . . . . . . . 2 . . . AOE 1 | . . . . . . . 1 . . . . Classes Destroyed 18 | 1 4 3 4 1 . . 1 1 . . 3 Worker 4 | . 1 . 1 . . . . 2 . . . Builder 4 | . . . 1 . . . 3 . . . . Tunneler 1 | . . . 1 . . . . . . . . Hauler 3 | . . . 1 . 1 . . 1 . . . Recycler 8 | 1 2 . 1 . . . 4 . . . . Mechanic 1 | . . . . . . . . 1 . . . Operator 1 | . . 1 . . . . . . . . . Watcher 8 | . 1 . 4 . 1 . 2 . . . . Swarmer 22 | . 3 3 4 . . . . 5 7 . . Saboteur 2 | . . . . . . . . . . . 2 Grunt 39 | . 2 12 6 4 2 . 5 1 . . 7 Duelist 6 | . . 1 . . . . 3 2 . . . Sentry 21 | . . 7 5 1 3 . 1 1 3 . . Hunter 4 | . . . 1 . . . 3 . . . . Programmer 3 | . . . . 1 . . . . 2 . . Behemoth 2 | . . . . . . . 2 . . . . Executioner 1 | . . . . . . . . . . . 1 Tinkerer 1 | . . . . . . . . . . . 1 Best Kill Streak 6 | 1 5 5 5 2 2 . 4 5 4 . 6 Combat Bots Only 6 | . 3 5 5 2 2 . 4 5 4 . 6 Max Kills in Single Turn 3 | 1 1 2 2 1 1 . 2 2 3 . 1 Gunslinging 1 | . . 1 1 . . . . 1 1 . . Exploded 1 | . . . . . . . 1 . . . . Melee 1 | . . . . . . . . . . . 1 Uniques/NPCs Destroyed . | . . . . . . . . . . . . Combat | -11 -10 -9 -8 -7 -7 -6 -6 -5 -5 -5 -5 -------- Run | Yrd Mat Mat Mat Fac Sto Fac Ext Fac Upp Upp War Hostile Shots Fired 799 | . 16 135 53 30 58 . 194 32 77 . 204 Missed 234 | . 5 36 18 10 23 . 57 3 16 . 66 Damage Taken 8221 | . 87 973 278 112 260 . 2116 613 1096 . 2686 Core 1376 | . 22 172 42 8 9 . 119 119 222 . 663 Absorbed by Shields 491 | . . 46 105 39 45 . 256 . . . . Ignored by Resistances 2250 | . 28 294 110 50 95 . 648 138 255 . 632 Regen/Repaired (Parts) 983 | . . 179 . . 68 . . . . . 736 Core Remaining (%) 87 | 100 91 57 92 . 97 . 86 . . . . Volleys Fired 329 | 2 21 78 42 18 21 . 64 15 26 5 37 Largest 5 | 2 2 2 3 4 4 . 4 5 5 3 4 Hottest 164 | 70 85 115 74 99 94 . 111 164 164 69 141 Shots Fired 937 | 4 42 149 126 67 84 . 208 67 104 14 72 Gun 913 | 4 42 149 126 67 84 . 199 60 96 14 72 Cannon 20 | . . . . . . . 5 7 8 . . Launcher 4 | . . . . . . . 4 . . . . Special . | . . . . . . . . . . . . Kinetic 873 | 2 21 126 126 67 84 . 204 67 100 14 62 Thermal 48 | 2 21 17 . . . . . . . . 8 Explosive 4 | . . . . . . . 4 . . . . Electromagnetic 12 | . . 6 . . . . . . 4 . 2 Robot Hit Streak 44 | 4 27 30 22 13 16 . 21 33 44 11 15 Robot Miss Streak 4 | . 1 2 4 2 3 . 3 2 2 . 1 Penetration Max 2 | . . . 1 . . . 1 1 . . 2 Secondary Targets 16 | . . 5 4 . 1 . . 2 2 . 2 Max Gunslinging Chain 2 | . . 1 1 . 1 . . 1 2 . 1 Shots Hit Robots 724 | 4 34 124 89 54 61 . 156 51 82 10 59 Core Hits 275 | 2 16 39 43 13 19 . 64 21 29 6 23 Critical Kills 7 | . . 1 1 . . . 2 1 . . 2 Critical Parts Destroyed 6 | . 1 2 . 2 . . . . . . 1 Critical Strikes 19 | 2 3 3 1 2 . . 3 1 . . 4 Burn 5 | 2 2 . . . . . . . . . 1 Destroy 13 | . 1 3 1 2 . . 2 1 . . 3 Blast 1 | . . . . . . . 1 . . . . Melee Attacks . | . . . . . . . . . . . . Impact . | . . . . . . . . . . . . Slashing . | . . . . . . . . . . . . Piercing . | . . . . . . . . . . . . Sneak Attacks . | . . . . . . . . . . . . Combat Hostiles . | . . . . . . . . . . . . Follow-up Attacks . | . . . . . . . . . . . . Damage Inflicted 13108 | 41 368 1830 1528 1031 1013 . 2930 1177 1579 191 1420 Guns 12129 | 41 363 1796 1528 915 1009 . 2422 986 1458 191 1420 Cannons 402 | . . . . . . . 126 155 121 . . Explosions 485 | . . . . 115 . . 370 . . . . Melee . | . . . . . . . . . . . . Ramming 92 | . 5 34 . 1 4 . 12 36 . . . Kinetic 11833 | 16 126 1523 1528 915 1009 . 2548 1141 1535 191 1301 Thermal 667 | 25 237 222 . 115 . . . . . . 68 Explosive 370 | . . . . . . . 370 . . . . Electromagnetic 146 | . . 51 . . . . . . 44 . 51 Impact . | . . . . . . . . . . . . Slashing . | . . . . . . . . . . . . Piercing . | . . . . . . . . . . . . Highest Corruption 3 | . . 2 . 1 1 . . . 3 3 3 Average Corruption 2 | . . 2 . 1 1 . . . 2 3 2 Corruption Purged . | . . . . . . . . . . . . Corruption Blocked . | . . . . . . . . . . . . Effects 33 | . . 9 . . 4 . . . 12 6 2 Message Errors 10 | . . 4 . . 1 . . . 3 2 . Matter Fused 6 | . . 1 . . 1 . . . 3 1 . Heat Flow Errors 5 | . . 1 . . . . . . 2 2 . Energy Discharges 3 | . . . . . 1 . . . 2 . . Data Loss (minor) 5 | . . . . . 1 . . . 2 . 2 Data Loss (major) 1 | . . 1 . . . . . . . . . Misfires 1 | . . 1 . . . . . . . . . Alerts 1 | . . 1 . . . . . . . . . Weapon Failures 1 | . . . . . . . . . . 1 . Overload Shots . | . . . . . . . . . . . . Overflow Damage 92 | . . . . 5 . . 87 . . . . Projectiles 30 | . . . . . . . 30 . . . . Explosions 62 | . . . . 5 . . 57 . . . . Melee . | . . . . . . . . . . . . Knockbacks 2 | . . . . . . . . 2 . . . Impact 2 | . . . . . . . . 2 . . . Kinetic . | . . . . . . . . . . . . Secondary . | . . . . . . . . . . . . Self-Inflicted Damage 133 | . 2 . . . . . 131 . . . . Shots 3 | . . . . . . . 3 . . . . Rammed 14 | . 2 7 . 1 1 . 2 1 . . . Targets Rammed 17 | . 2 8 . 1 1 . 2 3 . . . Kicked . | . . . . . . . . . . . . Crushed 3 | . . 1 . . . . . 2 . . . Highest Temperature 789 | 40 142 306 113 138 284 . 560 594 789 230 696 Average Temperature 140 | 23 50 92 33 48 82 . 143 178 229 81 216 Received Heat Transfer 1846 | . 42 555 131 28 153 . 297 45 63 . 532 Effects 94 | . . 2 . . 1 . 14 15 36 . 26 Shutdowns 41 | . . . . . . . 6 9 18 . 8 Energy Bleed 9 | . . 2 . . 1 . 2 1 1 . 2 Interference 11 | . . . . . . . 4 . 3 . 4 Matter Decay 7 | . . . . . . . 1 2 3 . 1 Short Circuit 6 | . . . . . . . 1 1 4 . . Damage (minor) 8 | . . . . . . . . 1 6 . 1 Damage (major) 7 | . . . . . . . . . . . 7 Damage (core) 5 | . . . . . . . . 1 1 . 3 Siege Activations . | . . . . . . . . . . . . Robots Corrupted . | . . . . . . . . . . . . Combat Hostiles . | . . . . . . . . . . . . Parts Fried . | . . . . . . . . . . . . Impact Corruptions . | . . . . . . . . . . . . Robots Melted . | . . . . . . . . . . . . Combat Hostiles . | . . . . . . . . . . . . Parts Melted 3 | . 2 . . . . . . . . . 1 Heat Transferred 1913 | 222 814 555 . 100 . . . . . . 222 Parts Sabotaged 4 | . . . . . . . . . . . 4 Parts Stolen . | . . . . . . . . . . . . Parts Stripped . | . . . . . . . . . . . . Power Chain Reactions . | . . . . . . . . . . . . Alert | -11 -10 -9 -8 -7 -7 -6 -6 -5 -5 -5 -5 ------- Run | Yrd Mat Mat Mat Fac Sto Fac Ext Fac Upp Upp War Peak Influence 517 | 5 159 479 517 414 349 133 145 283 . . . Initial 133 | . 2 57 123 123 94 133 55 10 . . . Average 152 | 2 53 250 307 236 200 133 47 109 . . . Maximum Alert Level 2 | . . 2 2 2 1 . . 1 . . . Low Security (%) 69 | 100 100 41 17 47 58 100 100 72 . . . Level 1 26 | . . 50 61 50 41 . . 27 . . . Level 2 4 | . . 8 21 2 . . . . . . . Level 3 . | . . . . . . . . . . . . Level 4 . | . . . . . . . . . . . . Level 5 . | . . . . . . . . . . . . High Security . | . . . . . . . . . . . . Max Security . | . . . . . . . . . . . . Squads Dispatched 18 | . . 6 3 3 3 . 1 2 . . . Investigation 10 | . . 4 1 1 2 . 1 1 . . . Extermination 1 | . . . . 1 . . . . . . . Reinforcement 7 | . . 2 2 1 1 . . 1 . . . Assault . | . . . . . . . . . . . . Garrison . | . . . . . . . . . . . . Intercept . | . . . . . . . . . . . . Searches Triggered . | . . . . . . . . . . . . Construction Impeded . | . . . . . . . . . . . . Haulers Reinforced 1 | . . . . . . . . 1 . . . Active Scanning Responses . | . . . . . . . . . . . . Cargo Convoy Interrupts . | . . . . . . . . . . . . Stealth | -11 -10 -9 -8 -7 -7 -6 -6 -5 -5 -5 -5 --------- Run | Yrd Mat Mat Mat Fac Sto Fac Ext Fac Upp Upp War Distress Signals 8 | . 2 2 . . . . 4 . . . . Communications Jammed . | . . . . . . . . . . . . Distress Signals . | . . . . . . . . . . . . Times Spotted 180 | . 8 34 21 6 13 . 24 10 13 . 51 Peak Tracking Total 12 | . 4 6 4 2 4 . 3 5 5 . 12 Tactical Retreats 11 | . . 1 . . . . 3 1 1 . 5 Traps | -11 -10 -9 -8 -7 -7 -6 -6 -5 -5 -5 -5 ------- Run | Yrd Mat Mat Mat Fac Sto Fac Ext Fac Upp Upp War Traps Triggered 5 | . . 1 1 . 1 1 . 1 . . . Indirectly . | . . . . . . . . . . . . Trap Hack Attempts . | . . . . . . . . . . . . Triggered . | . . . . . . . . . . . . Disarmed . | . . . . . . . . . . . . Reprogrammed 1 | . . . 1 . . . . . . . . Reused . | . . . . . . . . . . . . Traps Extracted . | . . . . . . . . . . . . Installed . | . . . . . . . . . . . . Triggered 12 | . . . . . 1 . 1 . . 1 9 Machines | -11 -10 -9 -8 -7 -7 -6 -6 -5 -5 -5 -5 ---------- Run | Yrd Mat Mat Mat Fac Sto Fac Ext Fac Upp Upp War Machines Disabled 18 | . . . . 12 3 . 3 . . . . Max in Single Turn 12 | . . . . 12 . . 1 . . . . Garrison Access 1 | . . . . . 1 . . . . . . Energy Cycler 4 | . . . . . . . 4 . . . . Machines Repaired . | . . . . . . . . . . . . Machines Dismantled . | . . . . . . . . . . . . Machines Sabotaged . | . . . . . . . . . . . . Overloaded Fab Kills . | . . . . . . . . . . . . Hacking | -11 -10 -9 -8 -7 -7 -6 -6 -5 -5 -5 -5 --------- Run | Yrd Mat Mat Mat Fac Sto Fac Ext Fac Upp Upp War Machines Accessed 23 | . . 4 2 1 6 . 4 1 2 . 3 Terminals 13 | . . 3 2 . 4 . 4 . . . . Fabricators . | . . . . . . . . . . . . Repair Stations 2 | . . 1 . . 1 . . . . . . Recycling Units 1 | . . . . . . . . 1 . . . Scanalyzers 1 | . . . . 1 . . . . . . . Garrison Access 1 | . . . . . 1 . . . . . . Total Hacks 64 | . . 18 5 6 12 . 11 3 5 . 4 Successful 43 | . . 9 2 6 7 . 8 2 5 . 4 Failed 21 | . . 9 3 . 5 . 3 1 . . . Catastrophic 1 | . . . . . 1 . . . . . . Database Lockouts . | . . . . . . . . . . . . Manual 3 | . . . . . . . . . . . 3 Terminals 34 | . . 9 5 . 9 . 11 . . . . Fabricators . | . . . . . . . . . . . . Repair Stations 11 | . . 9 . . 2 . . . . . . Recycling Units 3 | . . . . . . . . 3 . . . Scanalyzers 6 | . . . . 6 . . . . . . . Garrison Access 1 | . . . . . 1 . . . . . . Terminal Hacks 26 | . . 3 2 . 4 . 8 . 5 . 4 Record 11 | . . 3 . . . . 2 . 4 . 2 Open Door 8 | . . . . . 2 . 3 . 1 . 2 Branch Access Points 1 | . . . . . 1 . . . . . . Alert Level 1 | . . . . . 1 . . . . . . Locate Traps 1 | . . . . . . . 1 . . . . Reprogram Traps 1 | . . . 1 . . . . . . . . Surveillance Status 1 | . . . . . . . 1 . . . . Zone Layout 2 | . . . 1 . . . 1 . . . . Fabricator Hacks . | . . . . . . . . . . . . Repair Station Hacks 8 | . . 6 . . 2 . . . . . . Scan Component 4 | . . 3 . . 1 . . . . . . Repair 4 | . . 3 . . 1 . . . . . . Recycling Unit Hacks 2 | . . . . . . . . 2 . . . Process 1 | . . . . . . . . 1 . . . Retrieve Matter 1 | . . . . . . . . 1 . . . Scanalyzer 6 | . . . . 6 . . . . . . . Insert Component 3 | . . . . 3 . . . . . . . Analyze 3 | . . . . 3 . . . . . . . Garrison Access Hacks 1 | . . . . . 1 . . . . . . Seal Access 1 | . . . . . 1 . . . . . . Unauthorized Hacks . | . . . . . . . . . . . . Terminals . | . . . . . . . . . . . . Fabricators . | . . . . . . . . . . . . Repair Stations . | . . . . . . . . . . . . Recycling Units . | . . . . . . . . . . . . Scanalyzers . | . . . . . . . . . . . . Garrison Access . | . . . . . . . . . . . . Data Cores Recovered . | . . . . . . . . . . . . Used . | . . . . . . . . . . . . Hacking Detections 16 | . . 4 2 1 4 . 4 1 . . . Full Trace Events 10 | . . 4 2 1 1 . 1 1 . . . Feedback Events . | . . . . . . . . . . . . Feedback Blocked . | . . . . . . . . . . . . Robot Schematics Acquired . | . . . . . . . . . . . . Robots Built . | . . . . . . . . . . . . Authchips . | . . . . . . . . . . . . Time . | . . . . . . . . . . . . Total Robot Build Rating . | . . . . . . . . . . . . Part Schematics Acquired 3 | . . . . 3 . . . . . . . Parts Built . | . . . . . . . . . . . . Authchips . | . . . . . . . . . . . . Time . | . . . . . . . . . . . . Total Part Build Rating . | . . . . . . . . . . . . Parts Repaired 4 | . . 3 . . 1 . . . . . . Time 94 | . . 78 . . 16 . . . . . . Parts Recycled . | . . . . . . . . . . . . Recycled Matter 192 | . . . . . . . . 192 . . . Retrieved Matter 192 | . . . . . . . . 192 . . . Retrieved Components . | . . . . . . . . . . . . Parts Scanalyzed 3 | . . . . 3 . . . . . . . Part Schematics Acquired 3 | . . . . 3 . . . . . . . Parts Damaged . | . . . . . . . . . . . . Bothacking | -11 -10 -9 -8 -7 -7 -6 -6 -5 -5 -5 -5 ------------ Run | Yrd Mat Mat Mat Fac Sto Fac Ext Fac Upp Upp War Used RIF Installer . | . . . . . . . . . . . . Robots Hacked . | . . . . . . . . . . . . Non-combat . | . . . . . . . . . . . . Combat . | . . . . . . . . . . . . Robot Hacks Applied . | . . . . . . . . . . . . Relay Couplers Released . | . . . . . . . . . . . . Fabnet Peak Effective % . | . . . . . . . . . . . . Robots Rewired . | . . . . . . . . . . . . Allies Hacked . | . . . . . . . . . . . . Hacks Repelled . | . . . . . . . . . . . . Allies | -11 -10 -9 -8 -7 -7 -6 -6 -5 -5 -5 -5 -------- Run | Yrd Mat Mat Mat Fac Sto Fac Ext Fac Upp Upp War Total Allies 7 | . . . . . 2 3 2 . . . . Largest Group 3 | . . . . . 2 3 3 . . . . Highest-Rated Group 116 | . . . . . 116 100 101 . . . . Highest-Rated Ally 100 | . . . . . 100 100 39 . . . . Total Orders . | . . . . . . . . . . . . Ally Attacks 65 | . . . . . 26 . 39 . . . . Total Damage 1647 | . . . . . 1141 . 506 . . . . Kills 12 | . . . . . 8 . 4 . . . . Allies Corrupted . | . . . . . . . . . . . . Allies Melted . | . . . . . . . . . . . . Intel | -11 -10 -9 -8 -7 -7 -6 -6 -5 -5 -5 -5 ------- Run | Yrd Mat Mat Mat Fac Sto Fac Ext Fac Upp Upp War Robot Analysis Total . | . . . . . . . . . . . . Derelict Logs Recovered . | . . . . . . . . . . . . Drone Launches . | . . . . . . . . . . . . Drone Recoveries . | . . . . . . . . . . . . Exploration | -11 -10 -9 -8 -7 -7 -6 -6 -5 -5 -5 -5 ------------- Run | Yrd Mat Mat Mat Fac Sto Fac Ext Fac Upp Upp War Turns Passed 9027 | 59 183 861 878 507 468 189 2295 411 933 284 1959 Spaces Moved 4378 | 43 113 309 416 268 227 116 997 208 478 169 1034 Core 19 | 2 . 17 . . . . . . . . . Treads 4174 | . . 261 416 268 227 116 997 208 478 169 1034 Legs . | . . . . . . . . . . . . Wheels 185 | 41 113 31 . . . . . . . . . Hover . | . . . . . . . . . . . . Flight . | . . . . . . . . . . . . Fastest Speed 50 | 50 100 100 160 162 162 162 160 160 160 160 160 Average Speed 159 | 97 100 162 160 162 162 162 160 160 171 160 160 Slowest Speed 400 | 100 100 350 163 162 162 162 163 160 400 160 240 Overloaded Moves . | . . . . . . . . . . . . Propulsion Burnouts . | . . . . . . . . . . . . Robots Hopped . | . . . . . . . . . . . . Cave-ins Triggered . | . . . . . . . . . . . . Exploration Rate (%) 32 | 4 18 27 37 8 45 5 59 5 65 36 86 Regions Visited 11 Branch Regions 5 Pre-discovered Areas . | . . . . . . . . . . . . Known Exits Taken . | . . . . . . . . . . . . Unknown Exits Taken 11 | 1 1 1 1 1 1 1 1 1 1 1 . Scrap Searched 4 | . . . . . . . . . 3 1 . Spaces Dug . | . . . . . . . . . . . . Terrain Destroyed 97 | . . . 1 51 . . 31 1 2 . 11 Melee . | . . . . . . . . . . . . Projectile 17 | . . . 1 1 . . 1 1 2 . 11 AOE 80 | . . . . 50 . . 30 . . . . Terrain Rammed . | . . . . . . . . . . . . Walls Destroyed . | . . . . . . . . . . . . Machines Disabled . | . . . . . . . . . . . . Actions | -11 -10 -9 -8 -7 -7 -6 -6 -5 -5 -5 -5 --------- Run | Yrd Mat Mat Mat Fac Sto Fac Ext Fac Upp Upp War Total 5792 | 56 146 523 552 305 279 117 1566 252 537 174 1285 Wait 723 | . . 83 26 . 25 . 407 . . . 182 Move 4367 | 42 112 308 415 267 226 115 996 207 477 168 1034 Hop . | . . . . . . . . . . . . Pick Up 107 | 6 6 21 23 5 3 . 22 6 3 1 11 Fast Attach 16 | . . . 3 1 . . 4 6 1 . 1 Attach 71 | 6 3 17 3 3 2 2 16 3 5 . 11 Detach 9 | . 2 2 . . . . 2 1 2 . . Swap 57 | . . . 11 3 . . 26 3 7 . 7 Drop 85 | . . 6 29 7 1 . 27 8 5 . 2 Fire 329 | 2 21 78 42 18 21 . 64 15 26 5 37 Melee . | . . . . . . . . . . . . Ram 2 | . 2 . . . . . . . . . . Kick . | . . . . . . . . . . . . Crush 15 | . . 8 . 1 1 . 2 3 . . . Escape Stasis . | . . . . . . . . . . . . Rewire 11 | . . . . . . . . . 11 . . Trap . | . . . . . . . . . . . . Miscellaneous . | . . . . . . . . . . . . Route ------- -11/Scrapyard -10/Materials -9/Materials -8/Materials -7/Factory -7/Storage (discovered 2 exits: [*Fac] / Rec) -6/Factory -6/Extension -5/Factory -5/Upper Caves -5/Upper Caves -5/Warlord (discovered 1 exit: [*Pro]) History --------- Turn | Location | Event 22 | -11/Scrapyard | Discovered new exit (range 16) 60 | -11/Scrapyard | Entered Materials 221 | -10/Materials | Discovered new exit (range 15) 243 | -10/Materials | Entered another Materials area 243 | -9/Materials | Evolved 2 slots: Propulsion x1, Utility x1 303 | -9/Materials | Build established: Mutant 347 | -9/Materials | Lost 4 parts (3n1w) 634 | -9/Materials | Repaired Lgt. Treads 660 | -9/Materials | Repaired Lgt. Treads 692 | -9/Materials | Repaired Lgt. Treads 781 | -9/Materials | Build established: Scavenger-Mutant 1081 | -9/Materials | Discovered new exit (range 15) 1104 | -9/Materials | Entered another Materials area 1104 | -8/Materials | Evolved 2 slots: Power x1, Weapon x1 1543 | -8/Materials | Build established: Scavenger-Gunner 1921 | -8/Materials | Discovered new exit (range 16) 1982 | -8/Materials | Entered Factory 1982 | -7/Factory | Evolved 2 slots: Propulsion x1, Weapon x1 2478 | -7/Factory | Discovered new exit (range 7) 2489 | -7/Factory | Entered Storage 2570 | -7/Storage | Met 01-MTF 2620 | -7/Storage | Build established: Gunner 2856 | -7/Storage | Identified exit to Recycling 2877 | -7/Storage | Repaired Imp. Treads 2900 | -7/Storage | Discovered new exit (range 9) 2957 | -7/Storage | Entered Factory 2957 | -6/Factory | Accompanied by 1 ally (01-MTF) 2957 | -6/Factory | Evolved 2 slots: Power x1, Utility x1 2962 | -6/Factory | 01-MTF left 3096 | -6/Factory | Allied Derelicts emerged from ambush trap array 3138 | -6/Factory | Discovered new exit (range 5) 3146 | -6/Factory | Entered Extension 3146 | -6/Extension | Accompanied by 3 allies 3165 | -6/Extension | Build established: Scavenger-Gunner 3305 | -6/Extension | Energy Cycler disabled 3305 | -6/Extension | Rescued a captive Derelict 3305 | -6/Extension | Rescued a captive Derelict 3305 | -6/Extension | Rescued a captive Derelict 3306 | -6/Extension | Rescued a captive Derelict 3306 | -6/Extension | Rescued a captive Derelict 3306 | -6/Extension | Rescued a captive Derelict 3307 | -6/Extension | Rescued a captive Derelict 3307 | -6/Extension | Rescued a captive Derelict 3454 | -6/Extension | Spotted B-75 Beast 3500 | -6/Extension | Lost 3 allies 3836 | -6/Extension | Disrupted transfer network 4089 | -6/Extension | Lost 7 parts (4n1u2w) 4297 | -6/Extension | Spotted B-75 Beast 5049 | -6/Extension | Destroyed B-75 Beast 5095 | -6/Extension | Destroyed B-75 Beast 5112 | -6/Extension | Discovered new exit (range 15) 5441 | -6/Extension | Entered Factory 5441 | -5/Factory | Evolved 2 slots: Utility x1, Weapon x1 5820 | -5/Factory | Discovered new exit (range 8) 5852 | -5/Factory | Entered Upper Caves 6049 | -5/Upper Caves | Attracted the attention of an 0b10 outpost 6054 | -5/Upper Caves | Attracted the attention of an 0b10 checkpoint 6204 | -5/Upper Caves | Lost 3 parts (1n1u1w) 6205 | -5/Upper Caves | Learned Factory stockpile data 6205 | -5/Upper Caves | Learned Research terminal intel 6769 | -5/Upper Caves | Discovered new exit (range 9) 6785 | -5/Upper Caves | Entered another Upper Caves area 6840 | -5/Upper Caves | Build established: Scavenger-Tank 7059 | -5/Upper Caves | Discovered new exit (range 8) 7069 | -5/Upper Caves | Entered Warlord 7155 | -5/Warlord | System corruption cleaned by Quarantine Array 7760 | -5/Warlord | Received a Watcher feed algorithm from an ecstatic Tinkerer 8214 | -5/Warlord | Opened side exit 8246 | -5/Warlord | Discovered new exit (range 10) 8289 | -5/Warlord | Warlord's base attacked by MAIN.C 8371 | -5/Warlord | Lost 5 parts (1p1n3w) 8639 | -5/Warlord | Warlord forces counterattacked 8759 | -5/Warlord | Lost 11 allies 8876 | -5/Warlord | Spotted Striker 8894 | -5/Warlord | Core integrity fell below 50% 8908 | -5/Warlord | Core integrity fell below 20% 8964 | -5/Warlord | Warlord base infiltrated, sounded retreat 8973 | -5/Warlord | Spotted Executioner 9007 | -5/Warlord | Spotted Striker 9018 | -5/Warlord | Destroyed Executioner 9028 | -5/Warlord | Destroyed by H-66 Slayer with Gauss Rifle Last Messages --------------- Penetrated by Slug. Slug penetrates Earth. Penetrated by Slug. Executioner suffers critical hit (Destroy). Slug penetrates Earth. Destroyed Prototype Processor. Penetrated by Slug. Lgt. Treads destroyed. Rnf. Deuterium Engine destroyed. ZB-K47(m) destroyed. Executioner suffers critical hit (Destroy). Destroyed Helical Railgun. Executioner suffers critical hit (Destroy). Executioner destroyed. G-67 Veteran destroyed. Slug penetrates Striker. Mak. ECM Suite destroyed. Imp. Medium Treads destroyed. Penetrated by Slug. [Achievement: 10k Club] Map ----- +----------------------------------------------------+ | | | | | | | | | | | | | | | | | | | | | | | | | | | | | | | | | | | | | | | | | ?????????# #???????????##????#???????????????????? | | ?????????# #??????????? #?# # #?????????????????? | | ????????## ######????### ## # # ????????????????? | | ######### !# ###### #*! # #??????######???? | | ==!##![ =##=#/!*%#!= ## ### ##### | | = / !!!=[ =!%*[K@%===!! ! = | | ! =%g g %g%*[/%=!%p!%[%%=*%!%%= %h | | !" " ! %#*;; [!=*=#!###=%%= %#!%= ##+## | | """ """ %% ;##### !##???#!## ### """" # | | """ %""" #### #???# # ????####### """" # """ | | =%%[% %[ #???##???## ???# * ## """" # """ | | ===%% = #???############### ## """" # """ | | ########## #??#"""""""""""""## ## # """ | | ! [#?????# #??#""" """""""## ## ^ # | | ! [#?????# #??#""""X ""## % ## """" # | | #?????# "??#""" ""## % ## """" ##### | | #?###?# ##?# " ""## ## """" ## | | #+#### ### #?# ""## + """" | | ##?# """] ""## # | | ##########^^#??#""""] "## # | | #????????#^^#??#""""]] ############## ### | | ########## #??#""""""" #????????????# #??# | | # # #???########### #?????########+#### | | + # ###############//#?????# # | | # # #?????# # | | # + #?????# # | | # # #?????# # | | # # ##X##############?????# # | | # # ##########????????????# / | | # + + #????????????# # | +----------------------------------------------------+ Best States ------------- Heat Dissipation 40 Energy Generation 44 Energy Capacity 690 Matter Stores 400 Matter Capacity 400 Sight Range 16 Terrain Scan Density 10 ECM Strength 6 Jamming Range 14 Armor Coverage 450 Resistance: KI 20 Resistance: TH 20 Resistance: EX 20 Resistance: EM 20 Resistance: I 20 Resistance: S 20 Resistance: P 20 Evasion (%) 40 Targeting Accuracy 8 Recoil Reduction 4 Offensive Hacking 20 Item Schematics ----------------- Hvy. Assault Rifle | -7/Factory | Scanalyzed Lgt. Treads | -7/Factory | Scanalyzed Hacking Suite | -7/Factory | Scanalyzed Robot Schematics ------------------ None Fabricated ------------ Nothing Alien Tech Used ----------------- None Achievements -------------- 10k Club Backstab It Was An Accident, I Swear Leap Before You Look Oh No You Don't! Please Form A Line Slippery One Challenges ------------ None Game ------ Seed ScatterLayeredCore Manual? 0 Play Time 02:02:19 Cumulative 8.1 hours Start 2024.04.09 @ 13:06:56 End 2024.04.09 @ 15:15:15 Sessions 1 Manual Loads 0 Difficulty Adventurer Special Mode None Game No. 11 Rogue 9 Adventurer 2 Explorer 0 Win Type - Total 0 Types 0/0/0/0/0/0/0/0/0 Lore% 8 Gallery% 13 Achievement% 16 Wizard Run 0 Options --------- Layout 1 ASCII 0 Keyboard 0 Movement Mouse Keybinds 0 Fullscreen 1 Font 24/Smallcaps Map View 50x35 Zoom Use 0% Tactical HUD 0 Map Filters NONE Filters NONE Steam 1 RUN: 245f8318-40dd-4e4f-822e-dbfa667eb2f8